bitfinex-derivatives/quotes_ETHF0:USTF0_20251028
["timestamp","ask_amount","ask_price","bid_price","bid_amount"]
[1761617679814,0.32555006,4127.9,4127.8,3.34289595]
[1761617680214,0.32555006,4127.9,4127.8,2.03563089]
[1761617680717,0.32555006,4127.9,4127.8,2.47170089]
[1761617682514,0.32555006,4127.9,4127.8,2.03563089]
[1761617683014,0.53955006,4127.9,4127.8,2.03563089]
[1761617683709,0.53955006,4127.9,4127.8,1.73593089]
[1761617683914,0.7523,4127.7,4127.6,0.209]
[1761617684524,41.5523,4127.7,4127.6,0.7176]
[1761617685718,41.5523,4127.7,4127.6,0.4179]
[1761617686217,41.5523,4127.7,4127.6,0.209]
[1761617686715,41.5523,4127.7,4127.6,0.4179]
[1761617686920,41.5523,4127.7,4127.6,2.03563089]
[1761617687621,41.5523,4127.7,4127.6,1.73593089]
[1761617690724,41.5523,4127.7,4127.6,2.03563089]
[1761617691426,40.8,4127.7,4127.6,2.47172089]
[1761617691627,0.32555006,4127.9,4127.8,1.15367]
[1761617692221,0.53955006,4127.9,4127.8,1.15367]
[1761617693629,0.00185006,4127.9,4127.8,1.15367]
[1761617693829,0.53955006,4127.9,4127.8,1.15367]
[1761617694436,0.53955006,4127.9,4127.8,0.7176]
[1761617695432,0.75415006,4127.9,4127.8,0.7176]
[1761617696331,0.75415006,4127.9,4127.8,0.4179]
[1761617697536,0.75415006,4127.9,4127.8,0.85397]
[1761617697830,0.75415006,4127.9,4127.8,1.15367]
[1761617698232,0.75415006,4127.9,4127.8,0.85397]
[1761617699028,0.75415006,4127.9,4127.8,0.4179]
[1761617699228,0.43045006,4127.9,4127.6,2.83429595]
[1761617699435,0.4286,4127.7,4127.6,1.52703089]
[1761617699634,0.7523,4127.7,4127.6,1.52703089]
[1761617699830,0.7523,4127.4,4127.3,0.209]
[1761617701033,0.7523,4127.3,4127.2,2.62529595]
[1761617701235,0.7523,4127.3,4126.8,3.69644272]
[1761617701536,0.7523,4126.9,4126.8,1.52703089]
[1761617702337,0.7523,4126.9,4126.8,1.31803089]
[1761617702732,1.73120193,4129.5,4127.5,2.418]
[1761617703035,0.1313,4130.5,4130.1,0.43582]
[1761617703236,0.4286,4130.3,4130.2,0.8678]
[1761617703433,0.4286,4129.8,4129.7,0.43586]
[1761617703739,0.3453,4129.5,4129.2,1.31803089]
[1761617704035,0.4286,4129.4,4129.3,0.63269644]
[1761617704938,0.7466,4129.4,4129.3,0.63269644]
[1761617707640,41.5466,4129.4,4129.3,0.63269644]
[1761617707843,41.5466,4129.4,4129.3,1.95072733]
[1761617708339,0.0027653,4129.8,4129.5,0.264]
[1761617708545,0.2183653,4129.8,4129.7,1.76993089]
[1761617708837,0.4431653,4129.8,4129.7,2.40262733]
[1761617709043,1.23842675,4129.8,4129.7,2.40262733]
[1761617709244,42.03842675,4129.8,4129.7,2.40262733]
[1761617709632,0.1329,4131.5,4129.9,0.3426]
[1761617709944,0.5717,4130.5,4130.4,1.31803089]
[1761617710143,41.3717,4130.5,4130.4,1.95072733]
[1761617710442,42.51126145,4130.5,4130.4,1.95072733]
[1761617710845,42.51359026,4130.5,4130.4,0.63269644]
[1761617712440,42.51359026,4130.5,4130.4,1.06848644]
[1761617712645,42.51359026,4130.5,4130.4,0.63269644]
[1761617713142,42.51359026,4130.5,4130.4,1.95072733]
[1761617714742,42.51359026,4130.5,4130.4,2.74522733]
[1761617715444,42.51359026,4130.5,4130.4,4.48076695]
[1761617715839,0.79759026,4130.5,4130.4,2.74522733]
[1761617716236,1.01319026,4130.5,4130.4,2.74522733]
[1761617717046,41.81319026,4130.5,4130.4,2.74522733]
[1761617717947,41.01792881,4130.5,4130.4,2.74522733]
[1761617718348,41.36222881,4130.5,4130.4,2.74522733]
[1761617718748,40.80232881,4130.5,4130.4,2.74522733]
[1761617719249,40.80232881,4130.5,4130.4,3.18101733]
[1761617719546,41.14662881,4130.5,4130.4,3.18101733]
[1761617720850,42.07479026,4130.5,4130.4,2.61181733]
[1761617721055,42.07479026,4130.5,4130.4,0.63269644]
[1761617721247,0.1329,4130.0,4129.8,0.93374506]
[1761617721447,0.1329,4130.0,4129.5,4.35528343]
[1761617721448,0.3443,4129.8,4129.5,1.31803089]
[1761617721754,0.7847,4129.4,4129.3,0.2253]
[1761617722342,0.7847,4129.4,4129.3,1.00381]
[1761617722652,0.7847,4129.4,4129.3,1.23041]
[1761617723057,0.2156,4129.4,4129.3,1.23041]
[1761617723754,0.5599,4129.4,4129.3,1.23041]
[1761617726657,0.7847,4129.4,4129.3,1.23041]
[1761617731355,40.93522881,4130.5,4129.5,0.698]
[1761617731560,40.93522881,4130.5,4130.4,0.65078178]
[1761617731857,40.93522881,4130.5,4130.3,0.65078178]
[1761617732257,40.93522881,4130.5,4130.2,1.03232418]
[1761617733255,40.80232881,4130.5,4130.3,1.56565303]
[1761617733556,40.80232881,4130.5,4130.4,0.69637125]
[1761617734362,40.80232881,4130.5,4130.4,0.35067125]
[1761617735059,40.80232881,4130.5,4130.4,1.00262834]
[1761617738763,40.80232881,4130.5,4130.2,0.3115]
[1761617738960,1.03232418,4130.3,4130.2,0.3115]
[1761617739560,41.83232418,4130.3,4130.2,0.3115]
[1761617744560,40.8,4130.3,4130.2,0.3115]
[1761617747069,40.8,4130.3,4130.2,0.5207]
[1761617749465,40.8,4130.3,4130.2,0.3115]
[1761617749965,48.8,4130.3,4130.2,0.3115]
[1761617751965,48.8,4130.3,4130.2,0.5207]
[1761617753365,40.8,4130.3,4130.2,0.5207]
[1761617753569,40.8,4130.3,4130.2,0.7496]
[1761617754972,40.8,4130.3,4130.2,0.5207]
[1761617756975,40.8,4130.3,4130.2,0.7496]
[1761617757469,0.00232881,4130.5,4130.2,0.4381]
[1761617757680,0.00232881,4130.5,4130.4,1.78192418]
[1761617761268,40.80232881,4130.5,4130.4,1.78192418]
[1761617764077,40.80232881,4130.5,4130.4,0.3115]
[1761617769585,1.03232418,4130.1,4130.0,0.138]
[1761617769777,1.03232418,4130.4,4130.0,0.138]
[1761617770483,40.8,4130.1,4130.0,0.138]
[1761617771486,40.8,4130.1,4130.0,0.4551]
[1761617775385,41.83232418,4130.1,4130.0,0.4551]
[1761617777483,49.83232418,4130.1,4130.0,0.138]
[1761617778091,41.83232418,4130.1,4130.0,0.138]
[1761617779291,41.83232418,4130.1,4130.0,0.4551]
[1761617780490,40.8,4130.1,4130.0,0.6686]
[1761617780695,40.8,4130.1,4130.0,0.8977]
[1761617783491,40.8,4130.1,4130.0,0.6686]
[1761617785498,40.8,4130.1,4130.0,0.8936]
[1761617787201,40.8,4130.1,4130.0,0.4551]
[1761617787800,40.8,4130.1,4130.0,0.6724]
[1761617789295,40.8,4130.1,4130.0,0.4551]
[1761617789596,42.11647713,4130.1,4129.5,0.09547369]
[1761617789902,1.30389971,4130.0,4129.5,0.09547369]
[1761617790302,40.8,4129.6,4129.5,0.09547369]
[1761617791797,40.8,4129.6,4129.5,0.42647369]
[1761617793800,42.11647713,4129.6,4129.5,0.09547369]
[1761617793999,42.11647713,4129.6,4129.2,0.33385391]
[1761617795203,1.31647713,4129.6,4129.2,0.33385391]
[1761617795799,40.8,4129.3,4129.2,0.33385391]
[1761617796605,40.8,4129.3,4129.0,0.40657727]
[1761617796803,1.31647713,4129.2,4129.0,0.40657727]
[1761617797705,1.31647713,4129.2,4129.0,0.40866419]
[1761617798401,1.31647713,4129.2,4128.5,0.0664]
[1761617798711,1.31647713,4128.6,4127.5,0.3559]
[1761617798910,1.31647713,4128.2,4127.5,0.3559]
[1761617799409,40.8,4127.6,4127.5,0.13722198]
[1761617799613,40.80231306,4127.6,4127.5,0.13722198]
[1761617800505,40.80231306,4127.6,4127.5,0.00172198]
[1761617801815,40.99815504,4127.6,4127.5,0.00172198]
[1761617806707,40.99815504,4127.6,4126.8,0.3383]
[1761617806914,1.31647713,4127.0,4126.8,0.3383]
[1761617807416,40.8,4126.9,4126.8,0.3383]
[1761617807810,40.8,4126.9,4126.8,0.0029017]
[1761617808303,40.8,4126.9,4126.8,0.3412017]
[1761617809103,40.8,4126.9,4126.8,0.0029017]
[1761617809308,40.8,4126.9,4126.2,0.5587]
[1761617809512,40.8,4126.9,4126.3,0.5587]
[1761617809808,40.8,4126.9,4126.5,0.465]
[1761617810215,40.8,4126.9,4126.6,0.3383]
[1761617811814,40.8,4126.9,4126.5,0.4675285]
[1761617812114,40.8,4126.9,4126.6,0.3383]
[1761617812314,1.31647713,4127.0,4126.6,0.3383]
[1761617812814,40.8,4126.7,4126.6,0.3383]
[1761617814513,40.8,4126.7,4126.5,0.0025285]
[1761617814716,40.8,4126.7,4126.5,0.4675285]
[1761617815110,40.8,4126.7,4126.6,0.3383]
[1761617817611,40.8,4126.7,4126.6,0.5587]
[1761617818016,40.8,4126.7,4126.6,0.3383]
[1761617821918,40.8,4126.7,4126.5,0.1292285]
[1761617822115,1.31647713,4126.6,4126.5,0.1292285]
[1761617822318,1.31647713,4126.8,4126.6,0.3383]
[1761617822518,1.31647713,4126.9,4126.6,0.3383]
[1761617822718,40.8,4126.7,4126.6,0.3383]
[1761617831428,42.11647713,4126.7,4126.6,0.3383]
[1761617834227,41.66927182,4126.7,4126.6,0.7585]
[1761617834424,40.8,4126.7,4126.6,8.7585]
[1761617834628,1.06742686,4127.6,4127.5,0.666]
[1761617835329,0.19815504,4127.6,4127.5,0.666]
[1761617835632,40.99815504,4127.6,4127.5,0.666]
[1761617836128,41.86742686,4127.6,4127.5,0.666]
[1761617836329,40.99815504,4127.6,4127.5,0.666]
[1761617837833,42.31463217,4127.6,4127.5,0.666]
[1761617838029,42.31463217,4127.6,4127.5,0.4566]
[1761617838632,0.00231306,4127.6,4127.5,0.8768]
[1761617839427,0.19505695,4127.6,4127.5,0.8768]
[1761617840032,40.99505695,4127.6,4127.5,0.8768]
[1761617840333,40.80231306,4127.6,4127.5,0.8768]
[1761617841031,40.80231306,4127.6,4127.5,8.8768]
[1761617841235,0.19546875,4128.1,4128.0,0.8768]
[1761617841436,1.31647713,4129.0,4128.0,0.5499]
[1761617841633,1.31647713,4128.6,4128.2,0.5363]
[1761617841932,1.31647713,4128.6,4128.5,0.4566]
[1761617842233,42.11893758,4128.6,4128.5,0.4566]
[1761617843534,42.11893758,4128.6,4128.5,0.666]
[1761617844225,40.80246045,4128.6,4128.5,0.8768]
[1761617845332,0.00246045,4128.6,4128.5,0.8768]
[1761617845837,0.00246045,4128.6,4128.5,1.90969779]
[1761617846030,0.00246045,4128.6,4128.5,9.90969779]
[1761617846230,40.80246045,4128.6,4128.5,9.90969779]
[1761617848536,40.80246045,4128.6,4128.5,1.90969779]
[1761617848730,40.80246045,4128.6,4128.5,2.34569779]
[1761617848932,40.80246045,4128.6,4128.5,1.90969779]
[1761617850634,40.80246045,4128.6,4128.5,9.90969779]
[1761617856934,40.80246045,4128.6,4128.5,0.8768]
[1761617857241,40.80246045,4128.6,4128.0,0.4702]
[1761617857443,1.03289779,4128.1,4127.7,0.3405]
[1761617857644,1.03289779,4128.1,4127.8,0.3405]
[1761617857838,40.8,4128.0,4127.8,0.3405]
[1761617858038,40.8,4128.0,4127.8,0.5912]
[1761617858233,40.8,4128.0,4127.9,0.7996]
[1761617858845,40.8,4128.0,4127.9,0.3405]
[1761617859439,40.8,4128.0,4127.9,0.5912]
[1761617859835,40.8,4128.0,4127.9,0.7996]
[1761617863140,40.8,4128.0,4127.9,0.5912]
[1761617863446,41.83289779,4128.0,4127.6,0.3405]
[1761617863842,41.83289779,4128.0,4127.6,0.5912]
[1761617864045,41.83289779,4128.0,4127.7,0.3405]
[1761617866143,1.03289779,4128.0,4127.5,0.1297]
[1761617866348,1.03289779,4127.7,4127.6,0.3405]
[1761617866546,1.03289779,4128.0,4127.7,0.3405]
[1761617866744,40.8,4127.8,4127.7,0.2507]
[1761617866942,40.8,4127.8,4127.7,0.4591]
[1761617867448,40.8,4127.8,4127.7,0.7996]
[1761617868247,40.8,4127.8,4127.5,0.4702]
[1761617868647,40.8,4127.8,4127.6,0.3405]
[1761617868847,40.8,4127.8,4127.5,0.1297]
[1761617869049,40.8,4127.8,4127.5,0.4702]
[1761617869249,40.8,4127.8,4127.6,0.5912]
[1761617869447,40.8,4127.8,4127.7,0.3405]
[1761617871248,40.8,4127.8,4127.5,0.1297]
[1761617871450,40.8,4127.8,4127.6,0.3405]
[1761617871746,1.03289779,4128.0,4127.6,0.3405]
[1761617871950,1.03289779,4127.7,4127.6,0.3405]
[1761617872248,40.8,4127.7,4127.6,0.3405]
[1761617874347,41.83289779,4127.7,4127.5,0.3405]
[1761617874648,41.83289779,4127.7,4127.2,0.5912]
[1761617874950,41.83289779,4127.7,4127.3,0.5912]
[1761617875451,41.83289779,4127.7,4127.5,0.1521]
[1761617875653,41.83289779,4127.7,4127.6,0.3405]
[1761617876152,41.83289779,4127.7,4127.5,0.3405]
[1761617876352,41.83289779,4127.7,4127.5,0.4926]
[1761617876553,41.83289779,4127.7,4127.5,0.1521]
[1761617876852,41.83289779,4127.7,4127.6,0.3405]
[1761617881257,41.83289779,4127.7,4127.3,0.3405]
[1761617881554,1.03289779,4127.4,4127.3,0.3405]
[1761617881953,41.83289779,4127.4,4127.3,0.3405]
[1761617882154,41.83289779,4127.4,4127.3,0.5912]
[1761617882758,40.8,4127.4,4127.3,0.5912]
[1761617884456,40.8,4127.4,4127.3,0.7996]
[1761617884962,40.8,4127.4,4127.3,0.5912]
[1761617885256,40.8,4127.4,4127.3,0.3405]
[1761617885555,40.8,4127.4,4127.3,0.8265]
[1761617887857,40.8,4127.4,4127.3,1.85939779]
[1761617888650,0.00246045,4128.6,4128.4,0.4683]
[1761617888855,0.00246045,4128.6,4128.5,0.7187]
[1761617889359,40.80246045,4128.6,4128.5,0.7187]
[1761617889859,40.80246045,4128.6,4128.5,0.4792]
[1761617890560,40.80246045,4128.6,4128.5,0.3369]
[1761617890862,40.80246045,4128.6,4127.8,0.9888924]
[1761617891161,1.03289779,4127.9,4127.8,0.3369]
[1761617891564,1.03289779,4127.9,4127.8,0.8052]
[1761617891862,40.8,4127.9,4127.8,0.8052]
[1761617897459,40.8,4127.9,4127.8,1.89313857]
[1761617898562,40.8,4127.9,4127.8,1.45706857]
[1761617898959,40.8,4127.9,4127.8,1.89313857]
[1761617899158,40.8,4127.9,4127.8,1.24127]
[1761617899560,0.00246045,4128.6,4128.5,0.9475]
[1761617900055,40.80246045,4128.6,4128.5,0.9475]
[1761617913273,0.00246045,4128.6,4128.5,0.9475]
[1761617913465,0.00246045,4128.6,4128.5,1.38349]
[1761617913670,0.00246045,4128.6,4128.5,2.68505357]
[1761617914077,0.00246045,4128.6,4128.5,1.38349]
[1761617914566,40.8,4129.2,4129.0,0.43593]
[1761617914768,40.8,4129.2,4129.1,2.79618632]
[1761617915775,40.80273823,4129.2,4129.1,3.23211632]
[1761617916072,40.80273823,4129.2,4129.1,2.79618632]
[1761617916475,40.80273823,4129.2,4129.1,1.47896621]
[1761617917179,40.80273823,4129.2,4129.1,1.26453]
[1761617917567,0.18860562,4130.5,4129.8,0.3637]
[1761617917771,0.18860562,4130.5,4129.5,0.1328]
[1761617917772,0.65601294,4130.9,4130.3,0.3637]
[1761617918272,0.85084419,4130.9,4130.6,0.3637]
[1761617918571,40.8,4130.8,4130.6,0.36561428]
[1761617918975,40.8,4130.8,4130.6,0.00191428]
[1761617919677,40.8,4130.8,4130.6,0.36561428]
[1761617920473,40.8,4130.8,4130.7,0.2278]
[1761617920786,40.8,4130.8,4130.7,0.5915]
[1761617921078,40.8,4130.8,4130.7,0.3637]
[1761617921278,40.8,4130.8,4130.7,0.5915]
[1761617921478,40.8,4130.8,4130.7,0.8286]
[1761617922878,40.8,4130.8,4130.7,0.5915]
[1761617923070,40.8,4130.8,4130.7,0.3637]
[1761617923275,40.8,4130.8,4130.6,0.36561428]
[1761617925394,0.0019649,4130.9,4130.6,0.00191428]
[1761617925885,40.8,4130.7,4130.6,0.00191428]
[1761617926684,40.8,4130.7,4130.6,1.428e-05]
[1761617929289,42.11722011,4130.7,4130.6,1.428e-05]
[1761617930392,1.31722011,4130.1,4129.6,0.3637]
[1761617931394,1.31722011,4130.1,4129.6,0.36673437]
[1761617931891,1.31722011,4130.5,4129.7,0.3637]
[1761617932097,1.31722011,4130.5,4129.8,0.3637]
[1761617932595,40.8,4129.9,4129.8,0.3637]
[1761617933098,40.8,4129.9,4129.7,0.3637]
[1761617935197,40.8,4129.9,4129.7,0.3637]
[1761617936194,40.8,4129.9,4129.6,0.00303437]
[1761617936396,40.8,4129.9,4129.6,0.36673437]
[1761617937092,40.8,4129.9,4129.6,0.59453437]
[1761617937288,40.8,4129.9,4129.7,0.5915]
[1761617937497,40.8,4129.9,4129.8,0.3637]
[1761617937694,40.8,4129.9,4129.8,0.5915]
[1761617940601,40.8,4129.9,4129.8,0.3637]
[1761617940898,40.8,4129.9,4129.6,0.36673437]
[1761617942398,40.8,4129.9,4129.7,0.3637]
[1761617942598,40.8,4129.9,4129.8,0.3637]
[1761617945595,40.8,4129.9,4129.8,0.8059]
[1761617947503,40.8,4129.9,4129.8,0.5915]
[1761617948003,40.8,4129.9,4129.8,0.3637]
[1761617948705,40.8,4129.9,4129.6,0.00303437]
[1761617948901,40.8,4129.9,4129.7,0.3121]
[1761617951703,40.8,4129.9,4129.6,0.00303437]
[1761617952599,1.31722011,4129.7,4129.6,0.00303437]
[1761617952996,42.11722011,4129.7,4129.6,0.00303437]
[1761617953808,42.11722011,4129.7,4129.0,0.65101142]
[1761617954007,42.11722011,4129.7,4128.8,0.3121]
[1761617954008,1.31722011,4129.3,4128.7,0.3121]
[1761617954710,1.31722011,4128.9,4128.7,0.3121]
[1761617955006,1.31722011,4128.9,4128.7,0.00235132]
[1761617955208,1.31722011,4128.9,4128.7,0.31445132]
[1761617955605,1.31722011,4128.9,4128.7,0.00235132]
[1761617958411,1.31722011,4129.3,4128.8,0.3121]
[1761617958706,40.8,4128.9,4128.8,0.3121]
[1761617959009,40.8,4128.9,4128.7,0.00235132]
[1761617959209,40.8,4128.9,4128.7,0.31445132]
[1761617959408,42.11722011,4128.9,4128.7,0.31445132]
[1761617959712,42.11722011,4128.9,4128.7,0.00235132]
[1761617962209,42.11722011,4128.9,4128.7,0.31445132]
[1761617963512,1.31722011,4128.9,4128.7,0.31445132]
[1761617964009,40.8,4128.8,4128.7,0.31445132]
[1761617964313,40.8,4128.8,4128.7,0.52445132]
[1761617965312,40.8,4128.8,4128.7,0.73255132]
[1761617970812,40.8,4128.8,4128.7,9.38356274]
[1761617971008,2.3369589,4130.4,4130.0,0.1293]
[1761617971220,1.03305919,4130.4,4130.2,0.3121]
[1761617971422,1.30389971,4130.8,4130.0,0.1293]
[1761617971423,1.03305919,4130.3,4130.0,0.4414]
[1761617971620,1.03305919,4130.3,4129.7,0.3121]
[1761617971814,1.03305919,4129.8,4129.7,0.3121]
[1761617972120,41.83305919,4129.8,4129.7,0.5221]
[1761617973323,40.8,4129.8,4129.7,0.7302]
[1761617981026,40.8,4129.8,4129.7,0.5221]
[1761617981231,40.8,4129.8,4129.7,0.3121]
[1761617982932,40.8,4129.8,4129.7,0.5223]
[1761617984526,40.8,4129.8,4129.7,0.7401]
[1761617987137,40.8,4129.8,4129.7,0.3121]
[1761617992945,40.8,4129.8,4129.7,0.5223]
[1761617998347,40.8,4129.8,4129.7,0.3121]
[1761617998748,40.8,4129.8,4129.5,0.4502]
[1761617999050,40.8,4129.8,4129.6,0.3209]
[1761618000151,1.03305919,4129.9,4129.7,0.64984453]
[1761618000349,1.03305919,4129.9,4129.4,0.64984453]
[1761618000544,2.3369589,4129.8,4129.4,0.3209]
[1761618000749,1.30389971,4129.7,4129.6,0.3209]
[1761618001253,42.10389971,4129.7,4129.6,0.7489]
[1761618001450,40.8,4129.7,4129.6,0.7489]
[1761618001752,40.8,4129.7,4129.6,0.5311]
[1761618001952,40.8,4129.7,4129.5,0.1284]
[1761618002154,1.03305919,4129.6,4129.5,0.3209]
[1761618002655,1.03305919,4129.6,4129.5,0.4493]
[1761618003046,40.8,4129.7,4129.6,0.3209]
[1761618003252,40.8,4129.7,4129.6,0.5311]
[1761618003644,40.8,4129.7,4129.6,0.3209]
[1761618006356,40.8,4129.7,4129.6,0.5311]
[1761618006854,40.8,4129.7,4129.6,0.7486]
[1761618007547,1.30389971,4130.3,4129.6,1.51342453]
[1761618007753,0.19087486,4131.1,4130.4,0.7614]
[1761618007754,1.30389971,4130.5,4130.4,0.7614]
[1761618007951,1.30389971,4130.5,4130.2,1.03305919]
[1761618007952,1.30389971,4130.8,4130.6,0.3323]
[1761618008153,40.8,4130.7,4130.6,0.3323]
[1761618008954,40.8,4130.7,4130.6,0.5439]
[1761618009258,40.8,4130.7,4130.2,0.3323]
[1761618009457,1.03305919,4130.3,4130.0,0.4653]
[1761618009655,1.03305919,4130.3,4130.1,0.3323]
[1761618010058,40.8,4130.2,4130.1,0.3323]
[1761618012760,40.8,4130.2,4130.1,0.5439]
[1761618013858,40.8,4130.2,4130.1,0.3323]
[1761618014052,40.8,4130.2,4129.8,0.3323]
[1761618014560,40.8,4130.2,4130.1,0.3323]
[1761618016763,40.8,4130.2,4130.1,0.5439]
[1761618017163,40.8,4130.2,4130.1,0.3323]
[1761618019260,40.8,4130.2,4130.1,1.79445919]
[1761618020563,40.8,4130.2,4130.1,2.44430372]
[1761618023260,40.8,4130.2,4130.1,1.79445919]
[1761618023862,40.8,4130.2,4130.1,2.44430372]
[1761618024164,40.8,4130.2,4130.1,1.79445919]
[1761618025165,40.8,4130.2,4130.1,2.88013372]
[1761618025363,40.8,4130.2,4130.1,1.79445919]
[1761618025558,40.8,4130.2,4130.1,2.44430372]
[1761618025865,40.8,4130.2,4130.1,2.72705292]
[1761618027265,40.8,4130.2,4130.1,2.07720839]
[1761618028165,0.0019649,4130.9,4130.8,0.5439]
[1761618028666,40.8019649,4130.9,4130.8,0.5439]
[1761618029658,40.8019649,4130.9,4130.8,0.3323]
[1761618030668,40.8019649,4130.9,4130.5,0.4653]
[1761618030869,40.8019649,4130.9,4130.6,0.3323]
[1761618036373,42.10586461,4130.9,4130.6,0.3323]
[1761618042472,42.10586461,4130.9,4130.6,0.5511]
[1761618042668,42.10586461,4130.9,4130.6,0.2188]
[1761618042875,42.10586461,4130.9,4130.7,0.3215]
[1761618045482,40.8019649,4130.9,4130.7,0.3215]
[1761618046281,40.8019649,4130.9,4130.8,0.3215]
[1761618047977,40.8019649,4130.9,4130.8,0.5403]
[1761618049084,40.8019649,4130.9,4130.8,0.7518]
[1761618051088,40.8019649,4130.9,4130.8,0.5403]
[1761618053086,40.8019649,4130.9,4130.6,0.3215]
[1761618053382,40.8019649,4130.9,4130.5,0.4545]
[1761618053686,0.0019649,4130.9,4130.6,0.3215]
[1761618054089,40.8,4130.7,4130.6,0.3215]
[1761618055387,40.8,4130.7,4130.3,0.64984453]
[1761618055685,40.8,4130.7,4130.4,0.3215]
[1761618056188,40.8,4130.7,4130.6,0.3215]
[1761618057788,42.11580839,4130.7,4129.9,0.19924453]
[1761618057989,1.30633427,4130.1,4129.8,0.3215]
[1761618059489,40.8,4130.0,4129.8,0.3215]
[1761618059790,40.8,4130.0,4129.6,0.3215]
[1761618060483,40.8,4130.0,4129.7,0.3215]
[1761618060685,40.8,4130.0,4129.7,0.5403]
[1761618060885,40.8,4130.0,4129.8,0.3215]
[1761618063590,40.8,4130.0,4129.6,0.3215]
[1761618064384,1.31580839,4129.7,4129.3,0.3443]
[1761618064690,40.8,4130.0,4129.3,0.3443]
[1761618064691,43.42214266,4130.0,4129.3,0.3443]
[1761618064895,2.62214266,4130.0,4129.3,0.3443]
[1761618065290,1.31580839,4130.0,4129.3,0.3443]
[1761618065490,40.8,4129.6,4129.3,0.3443]
[1761618065689,40.8,4129.6,4129.5,0.4783]
[1761618075495,40.8,4129.6,4129.0,0.1293]
[1761618075796,40.8,4129.6,4129.2,0.3411]
[1761618076594,42.11580839,4129.6,4129.2,0.3411]
[1761618077200,1.31580839,4129.6,4129.2,0.3411]
[1761618077799,40.8,4129.3,4129.0,0.4704]
[1761618078099,40.8,4129.3,4129.1,0.3411]
[1761618078299,40.8,4129.3,4129.0,0.4704]
[1761618079199,4.022,4129.0,4127.3,0.86674535]
[1761618079404,2.63161678,4127.6,4126.0,0.3498]
[1761618079595,1.31580839,4126.7,4126.0,0.3498]
[1761618079899,40.8,4126.6,4126.0,0.3498]
[1761618080398,40.80241878,4126.6,4126.0,0.35277567]
[1761618081205,40.80241878,4126.6,4126.5,0.9202]
[1761618082099,40.80241878,4126.6,4126.5,0.4697]
[1761618084904,42.11822717,4126.6,4126.1,0.3411]
[1761618085399,42.11822717,4126.6,4126.1,0.2212]
[1761618085707,42.11822717,4126.6,4126.2,0.3411]
[1761618086203,40.80241878,4126.6,4126.5,0.6909]
[1761618088000,40.80241878,4126.6,4126.5,0.9202]
[1761618091204,40.80241878,4126.6,4126.5,0.6909]
[1761618091402,40.80241878,4126.6,4126.0,0.13157567]
[1761618091403,41.83668165,4126.6,4126.0,0.00297567]
[1761618091597,1.03426287,4126.1,4126.0,0.00297567]
[1761618091998,41.83426287,4126.1,4126.0,0.00297567]
[1761618092206,40.8,4126.1,4126.0,0.47267567]
[1761618092704,40.8,4126.1,4126.0,0.69387567]
[1761618095604,40.8,4126.1,4126.0,0.47267567]
[1761618095909,40.8,4126.1,4126.0,0.00297567]
[1761618097611,40.8,4126.1,4126.0,0.46677567]
[1761618097807,40.8,4126.1,4126.0,0.00297567]
[1761618102013,40.8,4126.1,4126.0,0.32947567]
[1761618102708,40.8,4126.1,4126.0,0.46677567]
[1761618104217,40.8,4126.1,4126.0,0.68227567]
[1761618105016,40.8,4126.1,4126.0,0.46677567]
[1761618107213,41.83426287,4126.1,4126.0,0.00297567]
[1761618108315,42.70091306,4126.1,4126.0,0.00297567]
[1761618109417,41.83426287,4126.1,4126.0,0.00297567]
[1761618109814,43.14059714,4126.1,4126.0,0.00297567]
[1761618110514,42.86852574,4126.1,4124.6,0.3265]
[1761618110717,1.03426287,4124.7,4124.6,0.3265]
[1761618110914,0.86781992,4124.7,4124.5,0.1373]
[1761618111118,0.86781992,4124.7,4124.6,0.542]
[1761618111316,0.86781992,4124.9,4124.7,0.3265]
[1761618111516,0.86781992,4124.9,4124.8,0.3265]
[1761618111719,41.66781992,4124.9,4124.8,0.3265]
[1761618112219,40.8,4124.9,4124.8,0.3265]
[1761618114225,40.8,4124.9,4124.7,0.00253744]
[1761618114421,1.03426287,4124.8,4124.7,0.00253744]
[1761618115124,41.83426287,4124.8,4124.7,0.00253744]
[1761618115327,0.111,4123.6,4123.2,0.3265]
[1761618115620,0.4406,4123.5,4123.4,0.7707]
[1761618115825,0.7788,4123.5,4123.4,0.7707]
[1761618116319,0.78174803,4123.5,4123.4,0.77323941]
[1761618117222,0.2234,4122.8,4122.5,0.1373]
[1761618117425,0.3382,4122.3,4122.1,0.3265]
[1761618117622,1.81306287,4122.2,4122.1,0.542]
[1761618118118,42.61306287,4122.2,4122.1,0.542]
[1761618118327,42.61306287,4122.2,4122.1,0.54434127]
[1761618118528,42.61306287,4122.2,4122.1,0.77304127]
[1761618119034,41.2406,4122.2,4122.1,0.77304127]
[1761618119425,40.8,4122.2,4122.1,1.80730414]
[1761618119837,40.8,4122.2,4122.1,0.77304127]
[1761618121431,0.3382,4123.2,4122.3,0.3265]
[1761618121935,40.8,4122.9,4122.8,0.7707]
[1761618123631,0.7788,4122.6,4122.5,0.3528]
[1761618124237,0.7788,4122.6,4122.5,0.5305]
[1761618124828,0.4364,4122.5,4122.1,0.00234127]
[1761618125031,0.7506,4121.4,4121.3,0.4378]
[1761618125433,0.7506,4121.1,4120.5,0.1284]
[1761618125633,0.4252,4120.6,4120.5,0.8812]
[1761618125837,0.7506,4120.9,4120.8,0.7528]
[1761618126236,0.3233,4120.8,4120.6,0.3264]
[1761618126431,0.7599,4120.6,4120.5,0.00280419]
[1761618126741,0.7599,4120.6,4120.5,0.32920419]
[1761618127043,0.7599,4120.6,4120.5,0.00280419]
[1761618127433,41.5599,4120.6,4120.5,0.55940419]
[1761618127633,41.2366,4120.6,4120.5,0.90140419]
[1761618127835,40.8,4120.6,4120.5,0.90140419]
[1761618129730,0.4390814,4120.9,4120.8,0.5566]